[Event "*** Titled Tuesday 3|2 Blitz"]
[Site "Chess.com"]
[Date "2015.12.01"]
[Round "8"]
[White "Keranke"]
[Black "spectralsoul"]
[Result "1/2-1/2"]
[WhiteElo "2597"]
[BlackElo "2504"]
[TimeControl "180+2"]
[EndTime "12:47:57 PST"]
[Termination "Game drawn by agreement"]

1. d4 {[%clk 0:03:01.9]} 1... Nf6 {[%clk 0:02:59.7]} 2. c4 {[%clk 0:03:02.1]}
2... e6 {[%clk 0:02:59.8]} 3. g3 {[%clk 0:03:03.4]} 3... Bb4+ {[%clk 0:02:58]}
4. Nd2 {[%clk 0:03:04.2]} 4... O-O {[%clk 0:02:58.3]} 5. Bg2 {[%clk 0:03:05.2]}
5... c5 {[%clk 0:02:59.4]} 6. Nf3 {[%clk 0:03:03.8]} 6... Nc6 {[%clk 0:02:55.9]}
7. dxc5 {[%clk 0:02:57.9]} 7... Bxc5 {[%clk 0:02:57.1]} 8. O-O {[%clk 0:02:59]}
8... Be7 {[%clk 0:02:58.4]} 9. b3 {[%clk 0:02:57.8]} 9... d6 {[%clk 0:02:52.1]}
10. Bb2 {[%clk 0:02:57.8]} 10... a6 {[%clk 0:02:43.5]} 11. Qc2 {[%clk 0:02:55]}
11... h6 {[%clk 0:02:37.5]} 12. Rac1 {[%clk 0:02:54.2]} 12... Bd7 {[%clk
0:02:38.2]} 13. Rfd1 {[%clk 0:02:52.8]} 13... Rc8 {[%clk 0:02:35.9]} 14. Qb1
{[%clk 0:02:52.7]} 14... b5 {[%clk 0:02:36.5]} 15. Qa1 {[%clk 0:02:49.9]} 15...
e5 {[%clk 0:02:18.5]} 16. c5 {[%clk 0:02:33.6]} 16... dxc5 {[%clk 0:02:15.7]}
17. Nxe5 {[%clk 0:02:35]} 17... Nxe5 {[%clk 0:02:16.4]} 18. Bxe5 {[%clk
0:02:36.9]} 18... Qb6 {[%clk 0:01:44]} 19. Ne4 {[%clk 0:02:34.7]} 19... Bg4
{[%clk 0:01:30.1]} 20. Bxf6 {[%clk 0:01:53.5]} 20... Bxf6 {[%clk 0:01:18.8]} 21.
Nxf6+ {[%clk 0:01:54.4]} 21... Qxf6 {[%clk 0:01:19.1]} 22. Qxf6 {[%clk
0:01:55.5]} 22... gxf6 {[%clk 0:01:21]} 23. Rd2 {[%clk 0:01:39.8]} 23... Rfd8
{[%clk 0:01:16.4]} 24. Rxd8+ {[%clk 0:01:39.6]} 24... Rxd8 {[%clk 0:01:17.4]}
25. f3 {[%clk 0:01:38.5]} 25... Be6 {[%clk 0:01:13.8]} 26. Rxc5 {[%clk
0:01:39.5]} 26... Rd2 {[%clk 0:01:14.8]} 27. a4 {[%clk 0:01:27.7]} 27... b4
{[%clk 0:01:11.7]} 28. Rc6 {[%clk 0:01:28.4]} 28... a5 {[%clk 0:01:02.9]} 29.
Rc5 {[%clk 0:01:29.1]} 29... Bxb3 {[%clk 0:00:54.4]} 30. Rxa5 {[%clk 0:01:30.1]}
30... Bc4 {[%clk 0:00:52.5]} 31. Ra8+ {[%clk 0:01:19.5]} 31... Kg7 {[%clk
0:00:53.5]} 32. Rb8 {[%clk 0:01:21]} 32... b3 {[%clk 0:00:44.1]} 33. Bh3 {[%clk
0:01:12.3]} 33... Rxe2 {[%clk 0:00:38.3]} 34. Bf5 {[%clk 0:00:49.7]} 34... Re1+
{[%clk 0:00:29.8]} 35. Kf2 {[%clk 0:00:46.3]} 35... Re2+ {[%clk 0:00:31]} 36.
Kg1 {[%clk 0:00:47.6]} 36... Ra2 {[%clk 0:00:30.2]} 37. Rb4 {[%clk 0:00:45.1]}
37... Bd5 {[%clk 0:00:29.6]} 38. h4 {[%clk 0:00:33.8]} 38... Kf8 {[%clk
0:00:24.3]} 39. Kf1 {[%clk 0:00:25]} 39... Ke7 {[%clk 0:00:24.8]} 40. Ke1 {[%clk
0:00:26.1]} 40... Kd6 {[%clk 0:00:25.6]} 41. Kd1 {[%clk 0:00:18.4]} 41... Bxf3+
{[%clk 0:00:22.9]} 42. Kc1 {[%clk 0:00:18.9]} 42... Bd5 {[%clk 0:00:24.6]} 43.
Bb1 {[%clk 0:00:18.9]} 43... Rg2 {[%clk 0:00:17.8]} 44. Be4 {[%clk 0:00:12.8]}
44... Bxe4 {[%clk 0:00:08.2]} 45. Rxe4 {[%clk 0:00:13.6]} 45... Rxg3 {[%clk
0:00:08.3]} 46. Kb2 {[%clk 0:00:15]} 46... Kc5 {[%clk 0:00:09.2]} 47. Rf4 {[%clk
0:00:15.2]} 47... f5 {[%clk 0:00:07.9]} 48. Rxf5+ {[%clk 0:00:16]} 48... Kb4
{[%clk 0:00:09.5]} 49. Rf4+ {[%clk 0:00:17.6]} 49... Ka5 {[%clk 0:00:11.1]} 50.
Ka3 {[%clk 0:00:15.8]} 50... b2+ {[%clk 0:00:12.5]} 51. Kxb2 {[%clk 0:00:16.8]}
51... Rh3 {[%clk 0:00:13.1]} 52. Kc2 {[%clk 0:00:17.5]} 52... f5 {[%clk
0:00:10.3]} 53. Kd2 {[%clk 0:00:16.8]} 53... Rg3 {[%clk 0:00:10.1]} 54. Ke2
{[%clk 0:00:13.6]} 54... Rg4 {[%clk 0:00:09.5]} 55. Rxf5+ {[%clk 0:00:14.2]}
55... Kxa4 {[%clk 0:00:10.6]} 56. h5 {[%clk 0:00:13.7]} 56... Rh4 {[%clk
0:00:09.9]} 57. Kf3 {[%clk 0:00:15.2]} 57... Kb4 {[%clk 0:00:11.1]} 58. Kg3
{[%clk 0:00:10.8]} 58... Rh1 {[%clk 0:00:11.8]} 59. Kf4 {[%clk 0:00:11.2]} 59...
Kc4 {[%clk 0:00:11.9]} 60. Ke5 {[%clk 0:00:12.7]} 60... Kd3 {[%clk 0:00:08.6]}
61. Kf6 {[%clk 0:00:08.8]} 61... Ke4 {[%clk 0:00:09.9]} 62. Re5+ {[%clk
0:00:10.2]} 62... Kf4 {[%clk 0:00:11]} 63. Ra5 {[%clk 0:00:10.6]} 63... Rb1
{[%clk 0:00:10.5]} 64. Ra4+ {[%clk 0:00:11.9]} 64... Kg3 {[%clk 0:00:11]} 65.
Ra6 {[%clk 0:00:11.7]} 65... Kg4 {[%clk 0:00:10]} 66. Kg6 {[%clk 0:00:12.8]}
66... Rh1 {[%clk 0:00:07.7]} 67. Ra4+ {[%clk 0:00:13.6]} 67... Kf3 {[%clk
0:00:09.4]} 68. Kxh6 {[%clk 0:00:15]} 68... Rg1 {[%clk 0:00:10]} 69. Kh7 {[%clk
0:00:15]} 69... Rg2 {[%clk 0:00:08.9]} 70. h6 {[%clk 0:00:15.8]} 70... Rg1
{[%clk 0:00:10.3]} 71. Ra6 {[%clk 0:00:16.9]} 71... Kf4 {[%clk 0:00:11.1]} 72.
Rg6 {[%clk 0:00:18]} 72... Ra1 {[%clk 0:00:12.2]} 73. Rf6+ {[%clk 0:00:11.2]}
73... Kg5 {[%clk 0:00:13.1]} 74. Rg6+ {[%clk 0:00:11.4]} 74... Kf5 {[%clk
0:00:14.2]} 75. Rd6 {[%clk 0:00:09.1]} 75... Rg1 {[%clk 0:00:13.6]} 76. Ra6
{[%clk 0:00:08.6]} 76... Rg2 {[%clk 0:00:14.3]} 77. Kh8 {[%clk 0:00:06.7]} 77...
Rg1 {[%clk 0:00:15.5]} 78. Ra7 {[%clk 0:00:05.6]} 78... Kf6 {[%clk 0:00:16.2]}
79. Rg7 {[%clk 0:00:06]} 79... Rh1 {[%clk 0:00:14.2]} 80. h7 {[%clk 0:00:04.7]}
80... Ra1 {[%clk 0:00:12.1]} 81. Rg8 {[%clk 0:00:06.2]} 81... Kf7 {[%clk
0:00:12.2]} 82. Rb8 {[%clk 0:00:07.3]} 82... Rg1 {[%clk 0:00:12.2]} 83. Rb7+
{[%clk 0:00:06.4]} 83... Kf8 {[%clk 0:00:13.5]} 84. Rb4 {[%clk 0:00:07.4]} 84...
Kf7 {[%clk 0:00:13.2]} 85. Rf4+ {[%clk 0:00:08.4]} 85... Ke7 {[%clk 0:00:14.7]}
86. Rf3 {[%clk 0:00:09.6]} 86... Ke8 {[%clk 0:00:15.2]} 87. Rf2 {[%clk
0:00:09.5]} 87... Ke7 {[%clk 0:00:16.5]} 88. Rf3 {[%clk 0:00:09]} 1/2-1/2

[Event "*** Titled Tuesday 3|2 Blitz"]
[Site "Chess.com"]
[Date "2015.12.01"]
[Round "9"]
[White "chessloveyou"]
[Black "BellJackson95"]
[Result "0-1"]
[WhiteElo "2131"]
[BlackElo "2173"]
[TimeControl "180+2"]
[EndTime "12:53:48 PST"]
[Termination "BellJackson95 won by checkmate"]

1. d4 {[%clk 0:03:01.9]} 1... Nf6 {[%clk 0:02:59.8]} 2. e3 {[%clk 0:02:45.7]}
2... c5 {[%clk 0:02:41]} 3. c3 {[%clk 0:02:46]} 3... d5 {[%clk 0:02:42.1]} 4.
Nf3 {[%clk 0:02:46.5]} 4... Nc6 {[%clk 0:02:39.4]} 5. Bd3 {[%clk 0:02:46.8]}
5... e6 {[%clk 0:02:40.7]} 6. O-O {[%clk 0:02:47.1]} 6... Bd6 {[%clk 0:02:41.2]}
7. Nbd2 {[%clk 0:02:47.8]} 7... O-O {[%clk 0:02:42.5]} 8. Re1 {[%clk 0:02:48.8]}
8... e5 {[%clk 0:02:40.3]} 9. dxe5 {[%clk 0:02:49]} 9... Nxe5 {[%clk 0:02:42.2]}
10. Nxe5 {[%clk 0:02:50]} 10... Bxe5 {[%clk 0:02:44.1]} 11. h3 {[%clk
0:02:51.2]} 11... b6 {[%clk 0:02:41.8]} 12. Nf3 {[%clk 0:02:50.6]} 12... Bc7
{[%clk 0:02:41.6]} 13. Qc2 {[%clk 0:02:49.7]} 13... Bb7 {[%clk 0:02:38.7]} 14.
b3 {[%clk 0:02:46.1]} 14... Qd6 {[%clk 0:02:31.6]} 15. Bb2 {[%clk 0:02:39.5]}
15... Rfe8 {[%clk 0:02:29.9]} 16. Bf1 {[%clk 0:02:25.7]} 16... d4 {[%clk
0:02:22.1]} 17. e4 {[%clk 0:02:24.9]} 17... Bxe4 {[%clk 0:02:06.5]} 18. Rxe4
{[%clk 0:02:25.1]} 18... Rxe4 {[%clk 0:02:06]} 19. cxd4 {[%clk 0:02:25.9]} 19...
cxd4 {[%clk 0:02:01.3]} 20. Bxd4 {[%clk 0:02:25.3]} 20... Rxd4 {[%clk
0:01:52.5]} 21. Nxd4 {[%clk 0:02:24.6]} 21... Qh2# {[%clk 0:01:49.9]} 0-1

[Event "*** Titled Tuesday 3|2 Blitz"]
[Site "Chess.com"]
[Date "2015.12.01"]
[Round "9"]
[White "stepanosinovsky"]
[Black "Thomaslegend"]
[Result "1-0"]
[WhiteElo "2193"]
[BlackElo "2128"]
[TimeControl "180+2"]
[EndTime "12:56:30 PST"]
[Termination "stepanosinovsky won by resignation"]

1. e4 {[%clk 0:03:01.9]} 1... c5 {[%clk 0:02:58.8]} 2. Nf3 {[%clk 0:03:01.1]}
2... d6 {[%clk 0:03:00.1]} 3. d4 {[%clk 0:03:01.3]} 3... cxd4 {[%clk 0:03:02]}
4. Nxd4 {[%clk 0:03:01.8]} 4... Nf6 {[%clk 0:03:03.5]} 5. Nc3 {[%clk 0:03:02.3]}
5... a6 {[%clk 0:03:05.1]} 6. Be3 {[%clk 0:03:02.3]} 6... e5 {[%clk 0:03:02.6]}
7. Nb3 {[%clk 0:02:58.8]} 7... Be6 {[%clk 0:03:03.7]} 8. Qd2 {[%clk 0:02:59.3]}
8... Nbd7 {[%clk 0:02:59.4]} 9. O-O-O {[%clk 0:02:56.7]} 9... Be7 {[%clk
0:02:54.7]} 10. f4 {[%clk 0:02:55.5]} 10... exf4 {[%clk 0:02:50]} 11. Bxf4
{[%clk 0:02:55.1]} 11... Ne5 {[%clk 0:02:50.9]} 12. h3 {[%clk 0:02:53.5]} 12...
O-O {[%clk 0:02:43.7]} 13. g4 {[%clk 0:02:37.3]} 13... Nfd7 {[%clk 0:02:39.9]}
14. Nd5 {[%clk 0:02:30.4]} 14... Bxd5 {[%clk 0:02:39.6]} 15. exd5 {[%clk
0:02:27]} 15... Rc8 {[%clk 0:02:27.4]} 16. Kb1 {[%clk 0:02:21.4]} 16... Bf6
{[%clk 0:02:23.8]} 17. g5 {[%clk 0:02:19.3]} 17... Be7 {[%clk 0:02:15.4]} 18. h4
{[%clk 0:02:19.1]} 18... Qc7 {[%clk 0:01:55.2]} 19. h5 {[%clk 0:02:16.1]} 19...
g6 {[%clk 0:01:46.6]} 20. Bd3 {[%clk 0:01:32.9]} 20... Nc4 {[%clk 0:01:28.2]}
21. Qh2 {[%clk 0:01:32]} 21... Bxg5 {[%clk 0:00:37]} 22. hxg6 {[%clk 0:01:23.1]}
22... Nf6 {[%clk 0:00:37.8]} 23. gxh7+ {[%clk 0:01:20.2]} 23... Kh8 {[%clk
0:00:39]} 24. Bxg5 {[%clk 0:01:21.1]} 24... Qe7 {[%clk 0:00:40.2]} 25. Qh4
{[%clk 0:01:19.4]} 1-0

[Event "*** Titled Tuesday 3|2 Blitz"]
[Site "Chess.com"]
[Date "2015.12.01"]
[Round "9"]
[White "AnimationDomination"]
[Black "BjarkeSahl"]
[Result "0-1"]
[WhiteElo "1736"]
[BlackElo "2117"]
[TimeControl "180+2"]
[EndTime "12:57:06 PST"]
[Termination "BjarkeSahl won by resignation"]

1. d4 {[%clk 0:03:01.9]} 1... Nf6 {[%clk 0:02:55.8]} 2. c4 {[%clk 0:03:00.2]}
2... e6 {[%clk 0:02:57.2]} 3. Nc3 {[%clk 0:03:01.5]} 3... Bb4 {[%clk 0:02:57.4]}
4. Bd2 {[%clk 0:03:00.5]} 4... O-O {[%clk 0:02:53.5]} 5. Nf3 {[%clk 0:02:59.4]}
5... b6 {[%clk 0:02:47.1]} 6. e3 {[%clk 0:02:56.1]} 6... Bb7 {[%clk 0:02:47.7]}
7. Bd3 {[%clk 0:02:50.8]} 7... Bxc3 {[%clk 0:02:46.8]} 8. Bxc3 {[%clk 0:02:50]}
8... Ne4 {[%clk 0:02:48.1]} 9. Rc1 {[%clk 0:02:39.1]} 9... f5 {[%clk 0:02:36.7]}
10. O-O {[%clk 0:02:30.3]} 10... d6 {[%clk 0:02:36.7]} 11. Nd2 {[%clk 0:02:29]}
11... Qh4 {[%clk 0:02:19]} 12. Qc2 {[%clk 0:02:01.7]} 12... Nxd2 {[%clk
0:02:08.8]} 13. Qxd2 {[%clk 0:02:00.7]} 13... Rf6 {[%clk 0:02:10.1]} 14. f3
{[%clk 0:01:59.2]} 14... Rh6 {[%clk 0:02:07.3]} 15. h3 {[%clk 0:01:59.4]} 15...
Nd7 {[%clk 0:02:05.9]} 16. Qf2 {[%clk 0:01:59.9]} 16... Qg5 {[%clk 0:01:56]} 17.
Rce1 {[%clk 0:01:40.6]} 17... Rxh3 {[%clk 0:01:09.7]} 18. f4 {[%clk 0:01:25.5]}
18... Qg6 {[%clk 0:01:06.3]} 19. Re2 {[%clk 0:01:01.1]} 19... Nf6 {[%clk
0:00:55]} 20. Bc2 {[%clk 0:00:46.6]} 20... Rh6 {[%clk 0:00:47.3]} 21. Bd1 {[%clk
0:00:35.5]} 21... Qh5 {[%clk 0:00:45.9]} 22. Qg3 {[%clk 0:00:24.2]} 22... Ng4
{[%clk 0:00:46.5]} 0-1

[Event "*** Titled Tuesday 3|2 Blitz"]
[Site "Chess.com"]
[Date "2015.12.01"]
[Round "9"]
[White "MateusViageiro"]
[Black "alex_zapata"]
[Result "0-1"]
[WhiteElo "2240"]
[BlackElo "2159"]
[TimeControl "180+2"]
[EndTime "12:57:31 PST"]
[Termination "alex_zapata won by resignation"]

1. e4 {[%clk 0:03:01.9]} 1... c5 {[%clk 0:03:00.7]} 2. Nf3 {[%clk 0:03:02.4]}
2... d6 {[%clk 0:03:01.8]} 3. d4 {[%clk 0:03:03.3]} 3... cxd4 {[%clk 0:03:03.7]}
4. Nxd4 {[%clk 0:03:04.9]} 4... Nf6 {[%clk 0:03:05.6]} 5. Nc3 {[%clk 0:03:06.3]}
5... a6 {[%clk 0:03:07]} 6. Be3 {[%clk 0:03:07.1]} 6... e5 {[%clk 0:03:08.2]} 7.
Nb3 {[%clk 0:03:08]} 7... Be6 {[%clk 0:03:10.1]} 8. f3 {[%clk 0:03:08.6]} 8...
Nbd7 {[%clk 0:03:10.9]} 9. Qd2 {[%clk 0:03:10.1]} 9... b5 {[%clk 0:03:12.2]} 10.
O-O-O {[%clk 0:03:11]} 10... Nb6 {[%clk 0:03:12.3]} 11. Kb1 {[%clk 0:03:05.3]}
11... b4 {[%clk 0:03:06.2]} 12. Bxb6 {[%clk 0:02:53.6]} 12... Qxb6 {[%clk
0:03:08.1]} 13. Nd5 {[%clk 0:02:54.2]} 13... Bxd5 {[%clk 0:03:08.5]} 14. exd5
{[%clk 0:02:55.1]} 14... Be7 {[%clk 0:03:10.4]} 15. g4 {[%clk 0:02:55]} 15... a5
{[%clk 0:03:06]} 16. g5 {[%clk 0:02:55.5]} 16... Nh5 {[%clk 0:03:05.7]} 17. Nc1
{[%clk 0:02:40.9]} 17... O-O {[%clk 0:03:05.2]} 18. Bd3 {[%clk 0:02:37.5]} 18...
a4 {[%clk 0:03:03.4]} 19. Be4 {[%clk 0:02:35.9]} 19... Rfc8 {[%clk 0:02:50.8]}
20. Nd3 {[%clk 0:02:24.6]} 20... b3 {[%clk 0:02:44.8]} 21. Nb4 {[%clk
0:02:06.3]} 21... bxa2+ {[%clk 0:02:25.4]} 22. Kxa2 {[%clk 0:02:01.2]} 22... Rc4
{[%clk 0:02:09.8]} 23. c3 {[%clk 0:01:51.7]} 23... a3 {[%clk 0:02:00.1]} 24. b3
{[%clk 0:01:51.2]} 24... Rc5 {[%clk 0:01:57.5]} 25. Nc6 {[%clk 0:01:46]} 25...
Bf8 {[%clk 0:01:50.7]} 26. b4 {[%clk 0:01:41.4]} 26... Rc4 {[%clk 0:01:43.4]}
27. Qd3 {[%clk 0:01:40.4]} 27... Nf4 {[%clk 0:01:12]} 28. Qxc4 {[%clk
0:01:39.2]} 28... Qf2+ {[%clk 0:01:10.3]} 0-1

[Event "*** Titled Tuesday 3|2 Blitz"]
[Site "Chess.com"]
[Date "2015.12.01"]
[Round "9"]
[White "LuckyTiger"]
[Black "Keranke"]
[Result "0-1"]
[WhiteElo "2501"]
[BlackElo "2603"]
[TimeControl "180+2"]
[EndTime "12:57:56 PST"]
[Termination "Keranke won on time"]

1. e4 {[%clk 0:03:01.9]} 1... g6 {[%clk 0:02:59.9]} 2. d4 {[%clk 0:03:02.9]}
2... Bg7 {[%clk 0:03:01.3]} 3. Nc3 {[%clk 0:03:04.5]} 3... d6 {[%clk 0:03:02.9]}
4. Nf3 {[%clk 0:03:01.9]} 4... a6 {[%clk 0:03:04.4]} 5. h3 {[%clk 0:02:55.9]}
5... b5 {[%clk 0:03:05.4]} 6. a3 {[%clk 0:02:54.1]} 6... Nd7 {[%clk 0:03:02.9]}
7. a4 {[%clk 0:02:44.4]} 7... b4 {[%clk 0:03:01.9]} 8. Nd5 {[%clk 0:02:45.7]}
8... Ngf6 {[%clk 0:03:00.4]} 9. Nxb4 {[%clk 0:02:43]} 9... c5 {[%clk 0:03:00.3]}
10. dxc5 {[%clk 0:02:39.9]} 10... dxc5 {[%clk 0:02:41.7]} 11. Nd5 {[%clk
0:02:26.9]} 11... Nxe4 {[%clk 0:02:36.1]} 12. Bc4 {[%clk 0:02:27.9]} 12... O-O
{[%clk 0:02:36.5]} 13. O-O {[%clk 0:02:28.7]} 13... Bb7 {[%clk 0:02:34.3]} 14.
Qe2 {[%clk 0:02:24]} 14... Nb6 {[%clk 0:02:25.3]} 15. Nxb6 {[%clk 0:01:35.4]}
15... Qxb6 {[%clk 0:02:27.2]} 16. c3 {[%clk 0:01:28.6]} 16... e6 {[%clk
0:02:19.9]} 17. Bf4 {[%clk 0:01:25.8]} 17... Nd6 {[%clk 0:02:13.2]} 18. a5
{[%clk 0:01:14.6]} 18... Qc6 {[%clk 0:02:01.4]} 19. Rfe1 {[%clk 0:01:04.1]}
19... Nxc4 {[%clk 0:01:57.3]} 20. Qxc4 {[%clk 0:01:06]} 20... Rfd8 {[%clk
0:01:50.6]} 21. Be5 {[%clk 0:00:45]} 21... Rd5 {[%clk 0:01:23.2]} 22. Bxg7
{[%clk 0:00:45]} 22... Kxg7 {[%clk 0:01:25.1]} 23. Qe4 {[%clk 0:00:29.2]} 23...
Rad8 {[%clk 0:01:17.5]} 24. Ne5 {[%clk 0:00:22.7]} 24... Qc7 {[%clk 0:01:18.2]}
25. Qf4 {[%clk 0:00:21.1]} 25... Rd2 {[%clk 0:00:57.3]} 26. Nxg6 {[%clk
0:00:14.8]} 26... Qxf4 {[%clk 0:00:58.8]} 27. Nxf4 {[%clk 0:00:16.7]} 27... Rxb2
{[%clk 0:01:00.1]} 28. Re5 {[%clk 0:00:09.6]} 28... Rdd2 {[%clk 0:00:57.6]} 29.
Rg5+ {[%clk 0:00:03.6]} 29... Kf6 {[%clk 0:00:52]} 30. Rg3 {[%clk 0:00:03.9]}
30... Rxf2 {[%clk 0:00:51]} 0-1

[Event "*** Titled Tuesday 3|2 Blitz"]
[Site "Chess.com"]
[Date "2015.12.01"]
[Round "9"]
[White "bugsbunny444"]
[Black "THORK"]
[Result "1-0"]
[WhiteElo "2352"]
[BlackElo "2190"]
[TimeControl "180+2"]
[EndTime "12:58:36 PST"]
[Termination "bugsbunny444 won by resignation"]

1. Nf3 {[%clk 0:03:01.9]} 1... f5 {[%clk 0:03:00.7]} 2. g3 {[%clk 0:02:58.6]}
2... Nf6 {[%clk 0:03:01.2]} 3. Bg2 {[%clk 0:03:00]} 3... d6 {[%clk 0:03:01]} 4.
d4 {[%clk 0:03:01.2]} 4... e6 {[%clk 0:03:01.9]} 5. O-O {[%clk 0:03:02.2]} 5...
Be7 {[%clk 0:03:03.1]} 6. c4 {[%clk 0:03:03.9]} 6... O-O {[%clk 0:03:04.5]} 7.
b4 {[%clk 0:03:05.6]} 7... Ne4 {[%clk 0:03:01.5]} 8. Bb2 {[%clk 0:03:06.1]} 8...
Bf6 {[%clk 0:03:01.5]} 9. Nc3 {[%clk 0:03:01.4]} 9... Nxc3 {[%clk 0:03:02]} 10.
Bxc3 {[%clk 0:03:02.1]} 10... Qe7 {[%clk 0:02:53.6]} 11. Qb3 {[%clk 0:02:29.3]}
11... Kh8 {[%clk 0:02:49.1]} 12. Rfe1 {[%clk 0:02:25.4]} 12... e5 {[%clk
0:02:49.2]} 13. dxe5 {[%clk 0:02:25.4]} 13... dxe5 {[%clk 0:02:50]} 14. e4
{[%clk 0:02:26.1]} 14... f4 {[%clk 0:02:51.4]} 15. Qb2 {[%clk 0:01:57.1]} 15...
fxg3 {[%clk 0:02:48.1]} 16. hxg3 {[%clk 0:01:54.8]} 16... Nd7 {[%clk 0:02:45.7]}
17. c5 {[%clk 0:01:41.6]} 17... a5 {[%clk 0:02:39.1]} 18. a3 {[%clk 0:01:40.1]}
18... a4 {[%clk 0:02:36.4]} 19. Rad1 {[%clk 0:01:36.8]} 19... Re8 {[%clk
0:02:37.3]} 20. Rd5 {[%clk 0:01:24.9]} 20... c6 {[%clk 0:02:36.7]} 21. Rd6
{[%clk 0:01:23.1]} 21... Nf8 {[%clk 0:02:37.9]} 22. Red1 {[%clk 0:01:05.5]}
22... Ng6 {[%clk 0:02:38.6]} 23. R1d3 {[%clk 0:00:57.2]} 23... Bg4 {[%clk
0:02:37.9]} 24. Qd2 {[%clk 0:00:50.4]} 24... Be6 {[%clk 0:02:35.4]} 25. Qe1
{[%clk 0:00:27.7]} 25... Kg8 {[%clk 0:02:26]} 26. Rd2 {[%clk 0:00:24.1]} 26...
Bf7 {[%clk 0:02:24.9]} 27. Bh3 {[%clk 0:00:22.2]} 27... Rad8 {[%clk 0:02:25.2]}
28. Rd7 {[%clk 0:00:16.3]} 28... Qf8 {[%clk 0:02:22]} 29. Rxb7 {[%clk
0:00:14.7]} 29... Rxd2 {[%clk 0:02:21.5]} 30. Qxd2 {[%clk 0:00:13.3]} 30... Rd8
{[%clk 0:02:22.5]} 31. Rd7 {[%clk 0:00:13.8]} 31... Re8 {[%clk 0:02:06.3]} 32.
Kg2 {[%clk 0:00:14.5]} 32... h6 {[%clk 0:02:05.5]} 33. Qd6 {[%clk 0:00:12.1]}
33... Qxd6 {[%clk 0:01:53.4]} 34. Rxd6 {[%clk 0:00:13.3]} 34... Rd8 {[%clk
0:01:49.9]} 35. Rxd8+ {[%clk 0:00:12.3]} 35... Bxd8 {[%clk 0:01:50.7]} 36. Nxe5
{[%clk 0:00:13.5]} 36... Nxe5 {[%clk 0:01:49.8]} 37. Bxe5 {[%clk 0:00:14.4]}
37... Bc4 {[%clk 0:01:51]} 38. Bd7 {[%clk 0:00:12.5]} 38... Bb5 {[%clk
0:01:51.7]} 39. Be6+ {[%clk 0:00:11]} 39... Kf8 {[%clk 0:01:53]} 40. Bd6+ {[%clk
0:00:10.8]} 40... Be7 {[%clk 0:01:54.5]} 41. e5 {[%clk 0:00:10.2]} 41... g6
{[%clk 0:01:53.8]} 42. f4 {[%clk 0:00:11.1]} 42... Bd3 {[%clk 0:01:52.3]} 43.
Kf2 {[%clk 0:00:10.7]} 43... h5 {[%clk 0:01:52.3]} 44. Bd7 {[%clk 0:00:09.9]}
44... Be4 {[%clk 0:01:51.3]} 45. b5 {[%clk 0:00:11]} 45... cxb5 {[%clk
0:01:51.7]} 46. Bxb5 {[%clk 0:00:12.1]} 46... Bc2 {[%clk 0:01:46.6]} 47. Bd7
{[%clk 0:00:11.2]} 47... Bxd6 {[%clk 0:01:45.8]} 48. exd6 {[%clk 0:00:08.3]}
48... Kf7 {[%clk 0:01:44.3]} 49. Ke3 {[%clk 0:00:09.5]} 49... Bb3 {[%clk
0:01:38.7]} 50. Kd4 {[%clk 0:00:10.6]} 1-0

[Event "*** Titled Tuesday 3|2 Blitz"]
[Site "Chess.com"]
[Date "2015.12.01"]
[Round "9"]
[White "GeorgMeier"]
[Black "DeviatkinAndrey"]
[Result "1-0"]
[WhiteElo "2629"]
[BlackElo "2519"]
[TimeControl "180+2"]
[EndTime "12:58:45 PST"]
[Termination "GeorgMeier won on time"]

1. Nf3 {[%clk 0:03:01.9]} 1... d5 {[%clk 0:03:00.4]} 2. g3 {[%clk 0:03:03]} 2...
c6 {[%clk 0:03:00.4]} 3. Bg2 {[%clk 0:03:03.5]} 3... Bg4 {[%clk 0:03:01.3]} 4.
c4 {[%clk 0:03:04.4]} 4... e6 {[%clk 0:03:01.5]} 5. O-O {[%clk 0:03:04.8]} 5...
Nf6 {[%clk 0:03:01]} 6. d3 {[%clk 0:03:05.5]} 6... Nbd7 {[%clk 0:03:01.2]} 7.
cxd5 {[%clk 0:03:04.1]} 7... exd5 {[%clk 0:02:55.1]} 8. h3 {[%clk 0:03:05.3]}
8... Bh5 {[%clk 0:02:54]} 9. Nc3 {[%clk 0:03:06.2]} 9... Bc5 {[%clk 0:02:28.3]}
10. Qb3 {[%clk 0:03:05.2]} 10... Bb6 {[%clk 0:02:27.1]} 11. Na4 {[%clk 0:03:06]}
11... O-O {[%clk 0:02:21.9]} 12. Nxb6 {[%clk 0:03:05.1]} 12... axb6 {[%clk
0:02:15.6]} 13. g4 {[%clk 0:03:00.2]} 13... Bg6 {[%clk 0:02:16.1]} 14. Nd4
{[%clk 0:03:01.1]} 14... b5 {[%clk 0:02:02.3]} 15. f4 {[%clk 0:02:55.6]} 15...
Ra4 {[%clk 0:02:02.8]} 16. Qc3 {[%clk 0:02:35.8]} 16... Qb6 {[%clk 0:01:33.1]}
17. b4 {[%clk 0:02:35.1]} 17... h6 {[%clk 0:01:26.1]} 18. a3 {[%clk 0:01:36.7]}
18... Re8 {[%clk 0:01:26.1]} 19. Kh1 {[%clk 0:01:32.9]} 19... Re7 {[%clk
0:01:12.5]} 20. Bb2 {[%clk 0:01:18.5]} 20... Ra8 {[%clk 0:01:08.8]} 21. Rae1
{[%clk 0:01:19.2]} 21... Rae8 {[%clk 0:01:09.1]} 22. Rf3 {[%clk 0:01:13.8]}
22... Qd8 {[%clk 0:00:51.1]} 23. Qd2 {[%clk 0:00:52.7]} 23... Nb6 {[%clk
0:00:33.1]} 24. Ref1 {[%clk 0:00:49]} 24... Na4 {[%clk 0:00:33.9]} 25. Ba1
{[%clk 0:00:49.8]} 25... Qd6 {[%clk 0:00:24.8]} 26. f5 {[%clk 0:00:44.4]} 26...
Bh7 {[%clk 0:00:25.5]} 27. g5 {[%clk 0:00:45.7]} 27... hxg5 {[%clk 0:00:26.4]}
28. Qxg5 {[%clk 0:00:46.1]} 28... Kh8 {[%clk 0:00:24.7]} 29. Rg3 {[%clk
0:00:43.1]} 29... Rg8 {[%clk 0:00:24.2]} 30. Rg1 {[%clk 0:00:29.1]} 30... Ne8
{[%clk 0:00:11.8]} 31. Bf3 {[%clk 0:00:23]} 31... f6 {[%clk 0:00:08.9]} 32. Qh4
{[%clk 0:00:22.5]} 32... Re5 {[%clk 0:00:04.2]} 33. Bh5 {[%clk 0:00:21.6]} 1-0